[Event "35th Staufer-Open-A 2025"]
[Site "Schwaebisch Gmuend"]
[Date "2025.01.06"]
[Round "9.6"]
[White "Velicka, Petr"]
[Black "Dgebuadze, Alexandre"]
[Result "1/2-1/2"]
[ECO "C04"]
[WhiteElo "2332"]
[BlackElo "2414"]
[Annotator "TA"]
[PlyCount "62"]
[EventDate "2024.11.24"]
[EventType "swiss"]
[EventCountry "GER"]
[SourceTitle "playchess.com"]
[Source "ChessBase"]
[SourceQuality "1"]
[TimeControl "40/6000+30:1200+30"]

{[%evp 10,62,46,29,72,32,39,33,55,40,45,43,45,26,20,16,18,10,17,7,12,6,13,1,10,2,10,0,0,0,0,-7,0,-7,0,-17,0,-12,0,0,0,0,0,-44,-39,-44,-49,-34,0,0,0,0,0,0,0]} 1. e4 {[%emt 0:00:14]} e6 {[%emt 0:00:39]} 2. d4 {[%emt 0:00:06]} d5 {[%emt 0:00:12]} 3. Nd2 {[%emt 0:00:06]} Nc6 {[%emt 0:00:09]} 4. Ngf3 {[%emt 0:00:28]} Nf6 {[%emt 0:00:11]} 5. e5 {[%emt 0:00:32]} Nd7 {[%emt 0:00:06]} 6. c3 {[%emt 0:00:22]} a5 {[%emt 0:04:20]} 7. a4 {[%emt 0:02:42]} b6 {[%emt 0:00:18]} 8. Bb5 {[%emt 0:05:39]} Ndb8 {[%emt 0:04:34] White is slightly better.} 9. O-O {[%emt 0:06:26]} Ba6 {[%emt 0:00:09]} 10. Qe2 {[%emt 0:00:57]} Be7 {[%emt 0:03:41]} 11. Ne1 {[%emt 0:04:10]} Bxb5 {[%emt 0:02:20]} 12. Qxb5 {[%emt 0:00:16]} (12. axb5 $5 Na7 $8 13. Qg4 $14) 12... O-O $1 {[%emt 0:02:01]} 13. f4 {[%emt 0:01:17]} Na7 {[%emt 0:04:14]} 14. Qe2 {[%emt 0:03:04]} c5 {[%emt 0:11:16]} 15. Ndf3 {[%emt 0:00:13]} Nac6 {[%emt 0:00:10]} 16. Be3 {[%emt 0:02:02]} cxd4 {[%emt 0:01:15]} 17. Nxd4 {[%emt 0:05:33]} Nxd4 {[%emt 0:00:27]} 18. cxd4 {[%emt 0:02:24]} Nc6 {[%emt 0:00:20][%cal Bb8c6,Bc6e7,Be7f5][%mdl 32]} 19. Nd3 {[%emt 0:01:32]} Qd7 {[%emt 0:01:22]} 20. Rfc1 {[%emt 0:01:18]} Rfc8 {[%emt 0:01:34]} 21. b3 {[%emt 0:04:18]} Bf8 {[%emt 0:06:27]} 22. Ne1 {[%emt 0:03:39]} Ne7 {[%emt 0:09:50]} 23. Nf3 {[%emt 0:02:10]} Nf5 {[%emt 0:00:53]} 24. Bd2 {[%emt 0:02:21]} h5 {[%emt 0:01:11]} 25. Qd3 {[%emt 0:01:56]} Be7 {[%emt 0:01:52]} 26. Ra2 {[%emt 0:03:36]} Rxc1+ {[%emt 0:01:52]} 27. Bxc1 {[%emt 0:00:06]} Rc8 {[%emt 0:03:35]} 28. Rc2 {[%emt 0:00:25]} Bb4 {[%emt 0:01:22]} 29. g3 {[%emt 0:07:54] The position is equal.} Rc7 {[%emt 0:06:13]} 30. Kf2 {[%emt 0:10:56]} f6 {[%emt 0:02:44]} 31. Bd2 {[%emt 0:04:24]} Rxc2 {[%emt 0:07:31] Weighted Error Value: White=0.09 (flawless) /Black=0.06 (flawless) .  Inaccurate:     	White=2     	Black=1      OK:         	White=6     	Black=11     Strong:       	---       	Black=1} 1/2-1/2

[Event "35th Staufer-Open-A 2025"]
[Site "Schwaebisch Gmuend"]
[Date "2025.01.06"]
[Round "9.7"]
[White "Hagner, Bennet"]
[Black "Langheinrich, Ferenc"]
[Result "1-0"]
[ECO "B08"]
[WhiteElo "2407"]
[BlackElo "2338"]
[Annotator "TA"]
[PlyCount "43"]
[EventDate "2024.11.24"]
[EventType "swiss"]
[EventCountry "GER"]
[SourceTitle "playchess.com"]
[Source "ChessBase"]
[SourceQuality "1"]
[TimeControl "40/6000+30:1200+30"]

{[%evp 10,43,30,22,50,50,123,118,114,102,120,116,143,129,147,141,139,145,214,215,187,145,256,269,340,327,297,568,687,660,655,595,1120,1111,1051,856]} 1. e4 {[%emt 0:00:02]} d6 {[%emt 0:00:07]} 2. d4 {[%emt 0:00:09]} Nf6 {[%emt 0:00:12]} 3. Nc3 {[%emt 0:00:03]} g6 {[%emt 0:00:15]} 4. Be3 {[%emt 0:01:06]} a6 {[%emt 0:00:18]} 5. Nf3 {[%emt 0:10:52]} Bg7 {[%emt 0:07:22]} 6. Qd2 {[%emt 0:04:02]} Bg4 {[%emt 0:18:47]} 7. O-O-O {[%emt 0:07:33]} c6 {[%emt 0:09:34]} (7... Nc6 $14) 8. Be2 $16 {[%emt 0:12:52]} b5 {[%emt 0:14:15] White is better.} 9. h3 {[%emt 0:11:08][%cal Bh2h3,Bh3h4][%mdl 32]} Bxf3 {[%emt 0:04:46]} 10. Bxf3 {[%emt 0:00:10]} ({Of course not} 10. gxf3 $6 Nbd7 $11) 10... d5 {[%emt 0:09:09]} 11. e5 {[%emt 0:08:28][%cal Be4e5,Be5e6,Be6f7][%mdl 32]} Nfd7 {[%emt 0:04:46]} 12. h4 {[%emt 0:08:33]} Nb6 {[%emt 0:01:55]} 13. b3 {[%emt 0:01:46] Prevents Nc4. White is much more active.} h6 {[%emt 0:03:21] [#]} (13... e6 $16 14. h5 Qe7) 14. e6 $1 $18 {[%emt 0:06:06][%mdl 512]} Qd6 {[%emt 0:02:43] Black is weak on the light squares} (14... a5 15. Ne2) 15. Rhe1 {[%emt 0:05:11][%cal Bh1e1,Be1e6,Be6f6][%mdl 32] Bf4 would now be deadly.} a5 {[%emt 0:08:53]} (15... fxe6 $16 16. Bf4 e5) 16. exf7+ {[%emt 0:03:55]} Kf8 {[%emt 0:03:03]} 17. Bf4 {[%emt 0:02:07]} ({But not} 17. h5 g5 18. Bg4 N8d7 $18) 17... Qa3+ {[%emt 0:00:10]} (17... Qf6 18. h5 N8d7 19. hxg6 Qxg6) 18. Kb1 {[%emt 0:00:02]} N8d7 {[%emt 0:02:08] White is clearly winning.} 19. Re6 {[%emt 0:02:50][%csl LRc6,LRg6]} b4 {[%emt 0:05:43]} 20. Ne2 {[%emt 0:00:27] Qd3 is the strong threat.} Kxf7 {[%emt 0:02:24] [#]} 21. Qd3 {[%emt 0:00:29]} Bf6 {[%emt 0:03:48]} 22. Rxf6+ {[%emt 0:00:25] White took control after the opening.   Weighted Error Value: White=0.13 (very precise) /Black=0.41.  Mistake:       	---       	Black=4      OK:         	White=8     	Black=5      Best:        	White=1     	---} 1-0

[Event "35th Staufer-Open-A 2025"]
[Site "Schwaebisch Gmuend"]
[Date "2025.01.06"]
[Round "9.8"]
[White "Kolb, Tobias"]
[Black "Harshavardhan G B"]
[Result "1-0"]
[ECO "E44"]
[WhiteElo "2342"]
[BlackElo "2405"]
[Annotator "TA"]
[PlyCount "73"]
[EventDate "2024.11.24"]
[EventType "swiss"]
[EventCountry "GER"]
[SourceTitle "playchess.com"]
[Source "ChessBase"]
[SourceQuality "1"]
[TimeControl "40/6000+30:1200+30"]

{[%evp 13,73,17,16,16,16,9,20,18,5,8,7,14,60,50,61,52,58,48,61,52,112,101,125,70,71,71,55,62,62,68,67,76,62,61,76,47,62,70,65,75,193,189,293,297,612,575,591,575,581,233,594,470,1162,1160,29979,29980,29983,29984,29984,29985,29985,29980]} 1. d4 {[%emt 0:10:29]} Nf6 {[%emt 0:00:24][%cal Bg8f6,Bf6e4,Be4d2][%mdl 32]} 2. c4 {[%emt 0:00:03]} e6 {[%emt 0:00:20]} 3. Nc3 {[%emt 0:00:02]} Bb4 {[%emt 0:00:12]} 4. e3 {[%emt 0:00:04]} b6 {[%emt 0:00:14]} 5. Nge2 {[%emt 0:00:03]} Ne4 {[%emt 0:00:24]} 6. Bd2 {[%emt 0:01:58]} Nxd2 {[%emt 0:00:12]} 7. Qxd2 {[%emt 0:00:02]} Bb7 {[%emt 0:00:12]} 8. a3 {[%emt 0:01:29]} Be7 {[%emt 0:00:14]} 9. d5 {[%emt 0:04:29]} d6 {[%emt 0:03:08]} 10. dxe6 {[%emt 0:15:56]} fxe6 {[%emt 0:00:26]} 11. Nf4 {[%emt 0:00:02]} Qd7 {[%emt 0:03:18]} 12. Be2 {[%emt 0:00:43]} e5 {[%emt 0:05:38]} (12... g5 $11 13. Nh5 Rg8) 13. Nfd5 $14 {[%emt 0:00:17]} Bd8 {[%emt 0:00:58]} 14. Ne4 {[%emt 0:04:58] aiming for Bh5+. Excellent horsemanship.} O-O {[%emt 0:02:22]} 15. Rd1 {[%emt 0:03:53]} Qe6 {[%emt 0:04:34]} 16. O-O {[%emt 0:05:28] White is much more active. The black rooks are passive.} Na6 {[%emt 0:03:10]} ({Black should play} 16... Nd7 $14) 17. b4 $16 {[%emt 0:03:47]} Kh8 {[%emt 0:02:28]} 18. Bf3 {[%emt 0:06:48]} (18. f4 $16) 18... c6 $14 {[%emt 0:24:52]} 19. Ndc3 {[%emt 0:01:22]} Be7 {[%emt 0:00:22]} 20. b5 {[%emt 0:07:00]} cxb5 {[%emt 0:07:46]} 21. cxb5 {[%emt 0:09:52][%cal Bc4b5,Bb5a6][%mdl 32]} (21. Nxb5 $2 Rxf3 (21... Qxc4 $2 22. Nexd6 Qa4 23. Bxb7 $18) (21... Qg6 22. Nbxd6 Rad8 23. Nxb7 $19) 22. gxf3 Qg6+ 23. Ng3 Bxf3 24. Nxd6 (24. Qd3 $2 Qg4 $19) 24... Rf8 $19 (24... Bxd1 25. Rxd1 Rf8 26. Qd5 $11) (24... Nc5 $2 25. e4 $19) (24... Rd8 25. Nf7+ Qxf7 26. Qxd8+ Bxd8 27. Rxd8+ $18)) (21. Ng5 {seems wilder.} Qc8 22. Bxb7 Qxb7 23. Ne6) 21... Rxf3 {[%emt 0:04:14]} 22. bxa6 $1 {[%emt 0:04:46]} (22. gxf3 Nc7 $15) 22... Bxe4 {[%emt 0:01:46]} 23. Nxe4 {[%emt 0:00:01]} (23. gxf3 $2 Qg6+ 24. Kh1 Bxf3#) 23... Rff8 {[%emt 0:00:12]} 24. Nc3 $36 {[%emt 0:01:47][%mdl 2048] White has the initiative.} (24. Nxd6 $2 Rad8 25. Qc2 Rxd6 $19) 24... Rac8 {[%emt 0:04:02]} 25. Qd5 {[%emt 0:03:43]} Qd7 {[%emt 0:12:08]} 26. Ne4 {[%emt 0:03:09][%cal Re4d6]} Qa4 {[%emt 0:05:02]} (26... h6 $16) 27. Qb7 $18 {[%emt 0:01:24]} (27. Nxd6 $6 Bxd6 28. Qxd6 Qxa6 $16) 27... Bh4 {[%emt 0:05:22]} (27... h6 $142 28. h3 (28. Nxd6 Bxd6 29. Rxd6 Qc2 $18) (28. Qxe7 Qxe4 29. Rd2 Rfd8 $16) (28. Qxa7 Bh4 $18) 28... Bh4 29. Rxd6 Rce8) 28. Nxd6 {[%emt 0:03:23]} ({Less strong is} 28. Rxd6 Rb8 29. Qd5 (29. Qxa7 Qxe4 30. g3 Bg5 $11) 29... Qxa6 $16) 28... Bxf2+ $2 {[%emt 0:03:28]} (28... Rb8) 29. Kh1 $1 {[%emt 0:00:02]} Rb8 {[%emt 0:01:34]} 30. Qd5 {[%emt 0:01:05]} Qd7 {[%emt 0:01:40] Black is weak on the light squares} 31. Qxe5 {[%emt 0:00:05]} (31. Rd2 $142 Qc7 32. h3 (32. Rfxf2 $2 {loses.} Rxf2 33. Rd1 Rbf8 $19) (32. Qxe5 Bg3 $11) (32. Rdxf2 Rxf2 33. Nf7+ Kg8 $11) 32... Bxe3 33. Nf7+ Rxf7 34. Rxf7) 31... Qg4 $2 {[%emt 0:07:26]} (31... Qc7 32. Qd5 h6) 32. h3 {[%emt 0:05:18]} Qg6 {[%emt 0:01:24] [#]} (32... Qe2 $142 33. Qd5 Rf6) 33. Rxf2 $1 {[%emt 0:00:58]} Rxf2 {[%emt 0:02:26] [#]} (33... h6 34. Rdf1) 34. Nf7+ $1 {[%emt 0:00:03][%mdl 512]} Kg8 {[%emt 0:00:27][%cal Bh8g8,Bg8f7,Bf7e6][%mdl 32]} (34... Qxf7 35. Qxb8+) 35. Qxb8+ {[%emt 0:00:03]} Kxf7 {[%emt 0:00:06]} 36. Rd7+ {[%emt 0:00:11]} Ke6 {[%emt 0:00:07]} 37. Rd6+ {[%emt 0:00:11]} (37. Rxa7 $2 Qxg2#) 1-0

[Event "35th Staufer-Open-A 2025"]
[Site "Schwaebisch Gmuend"]
[Date "2025.01.06"]
[Round "9.9"]
[White "Riehle, Marco"]
[Black "Ferster, Fabian"]
[Result "1/2-1/2"]
[ECO "B33"]
[WhiteElo "2388"]
[BlackElo "2231"]
[Annotator "TA"]
[PlyCount "109"]
[EventDate "2024.11.24"]
[EventType "swiss"]
[EventCountry "GER"]
[SourceTitle "playchess.com"]
[Source "ChessBase"]
[SourceQuality "1"]
[TimeControl "40/6000+30:1200+30"]

{[%evp 20,109,22,8,7,0,30,-5,12,13,32,30,32,27,27,25,24,0,37,33,31,24,35,32,35,27,32,5,51,0,0,0,47,58,55,53,52,49,46,46,47,46,54,55,87,87,89,92,106,111,121,120,122,129,128,125,128,131,131,93,116,116,116,94,115,47,111,111,111,111,111,111,111,77,77,77,77,77,77,77,77,77,77,59,59,59,59,8,8,8,8,8]} 1. e4 {[%emt 0:00:17]} c5 {[%emt 0:00:08]} 2. Nf3 {[%emt 0:01:59][%cal Bg1f3,Bf3d4,Bd4b5,Bb5a3,Ba3c2][%mdl 32]} Nc6 {[%emt 0:00:13]} 3. d4 {[%emt 0:00:06]} cxd4 {[%emt 0:00:09]} 4. Nxd4 {[%emt 0:00:03]} Nf6 {[%emt 0:00:06]} 5. Nc3 {[%emt 0:00:05]} e5 {[%emt 0:00:08]} 6. Ndb5 {[%emt 0:00:05]} d6 {[%emt 0:00:09]} 7. Bg5 {[%emt 0:00:17]} a6 {[%emt 0:00:10]} 8. Na3 {[%emt 0:01:59]} b5 {[%emt 0:00:10]} 9. Nd5 {[%emt 0:00:05]} Be7 {[%emt 0:00:10]} 10. Bxf6 {[%emt 0:00:09]} Bxf6 {[%emt 0:00:08]} 11. c4 {[%emt 0:01:24]} b4 {[%emt 0:01:19]} 12. Nc2 {[%emt 0:06:50]} O-O {[%emt 0:02:07]} 13. g3 {[%emt 0:01:54]} Be6 {[%emt 0:02:54]} 14. Bg2 {[%emt 0:01:46]} ({Of course not} 14. Ncxb4 Nxb4 15. Nxb4 Qb6 $15) 14... Bxd5 {[%emt 0:05:11]} 15. cxd5 {[%emt 0:01:02]} Nd4 {[%emt 0:00:09]} 16. Nxd4 {[%emt 0:05:29]} exd4 {[%emt 0:02:05]} 17. O-O {[%emt 0:02:33]} Qb6 {[%emt 0:01:57][%cal Od4d3]} 18. Bh3 {[%emt 0:07:05]} Ra7 {[%emt 0:05:00][%cal Od4d3]} 19. Rc1 {[%emt 0:05:59]} Rc7 {[%emt 0:13:44]} 20. Qd3 {[%emt 0:04:31]} Re8 {[%emt 0:11:15] Black is weak on the light squares} 21. Rfe1 {[%emt 0:12:10]} Ree7 {[%emt 0:05:24]} 22. Rxc7 {[%emt 0:08:53]} Rxc7 {[%emt 0:02:17]} 23. f4 {[%emt 0:00:26]} Re7 {[%emt 0:11:56]} (23... g6 $11 {might be stronger.}) 24. Rc1 {[%emt 0:03:46]} Rc7 {[%emt 0:02:42]} 25. Re1 $40 {[%emt 0:00:08][%mdl 128] White mounts an attack.} Re7 {[%emt 0:00:10]} 26. Bf1 {[%emt 0:03:26][%cal Oe1c1]} a5 {[%emt 0:12:51]} 27. b3 {[%emt 0:10:08]} g6 {[%emt 0:04:08]} 28. Qb5 {[%emt 0:04:41]} Qxb5 {[%emt 0:04:13]} 29. Bxb5 $14 {[%emt 0:00:58][%mdl 4096] Endgame. KRB-KRB} Kf8 {[%emt 0:02:22]} 30. Kf2 {[%emt 0:03:47]} Rc7 {[%emt 0:02:13]} 31. Bc4 {[%emt 0:02:47]} a4 {[%emt 0:00:31]} 32. e5 {[%emt 0:01:17]} Be7 {[%emt 0:03:08]} 33. Ke2 {[%emt 0:03:52] White is more active.} axb3 {[%emt 0:01:13]} 34. axb3 {[%emt 0:00:06]} Ra7 {[%emt 0:00:22] Repels Ra1} 35. Kd3 {[%emt 0:00:09]} Ra2 {[%emt 0:00:30]} 36. Kxd4 {[%emt 0:00:38]} h5 {[%emt 0:10:16]} (36... dxe5+ 37. fxe5 Rd2+ 38. Ke3 (38. Bd3 f6 $18) 38... Bg5+ 39. Ke4 $18) 37. Re2 {[%emt 0:07:57]} Rxe2 {[%emt 0:03:37]} 38. Bxe2 $16 {[%emt 0:00:04] KB-KB} Ke8 {[%emt 0:02:07]} 39. h4 {[%emt 0:01:26]} Kd8 {[%emt 0:02:08]} 40. Bd3 {[%emt 0:04:16]} Bf8 {[%emt 0:00:35]} 41. Kc4 {[%emt 0:25:56]} Bg7 {[%emt 0:10:41]} 42. exd6 {[%emt 0:00:00]} (42. e6 $16 f5 43. Kxb4) 42... Bc3 {[%emt 0:00:15] [#]} (42... f5 $1 $14) 43. f5 $1 {[%emt 0:00:00]} Be1 {[%emt 0:02:22]} 44. fxg6 {[%emt 0:00:00]} fxg6 {[%emt 0:00:18]} 45. Bxg6 {[%emt 0:00:00]} Bxg3 {[%emt 0:00:06]} 46. Kxb4 {[%emt 0:00:00] Black must now prevent Kc5.} Bxd6+ {[%emt 0:02:33]} 47. Kb5 {[%emt 0:00:00][%cal Ob5c6] Kc6! would now be deadly.} Kc7 {[%emt 0:00:19]} 48. Bxh5 {[%emt 0:00:00]} Be7 {[%emt 0:00:05]} 49. b4 {[%emt 0:00:00]} Bxh4 {[%emt 0:00:41]} 50. Ka6 {[%emt 0:00:00]} Be1 {[%emt 0:00:55]} 51. b5 {[%emt 0:00:00]} Bf2 {[%emt 0:00:05] Against b6+} 52. Bf3 {[%emt 0:00:00]} Be3 {[%emt 0:00:22] [#]} 53. b6+ {[%emt 0:00:00]} Bxb6 $11 {[%emt 0:00:05] [#]} 54. d6+ $1 {[%emt 0:00:00]} Kxd6 {[%emt 0:00:05]} (54... Kd7 55. Kxb6) 55. Kxb6 {[%emt 0:00:00] Weighted Error Value: White=0.11 (very precise) /Black=0.09 (flawless) .  Mistake:       	White=2     	Black=2      Inaccurate:     	White=3     	Black=3      OK:         	White=20    	Black=19     Best:        	White=1     	Black=2      Strong:       	White=1     	---} 1/2-1/2

[Event "35th Staufer-Open-A 2025"]
[Site "Schwaebisch Gmuend"]
[Date "2025.01.06"]
[Round "9.10"]
[White "Duong, Quang Bach"]
[Black "Senthil Maran K"]
[Result "1-0"]
[ECO "B15"]
[WhiteElo "2207"]
[BlackElo "2398"]
[Annotator "TA"]
[PlyCount "83"]
[EventDate "2024.11.24"]
[EventType "swiss"]
[EventCountry "GER"]
[SourceTitle "playchess.com"]
[Source "ChessBase"]
[SourceQuality "1"]
[TimeControl "40/6000+30:1200+30"]

{[%evp 10,83,35,14,15,19,12,18,18,0,4,0,10,3,13,3,19,8,5,16,19,20,27,-8,-19,-77,-81,-225,-226,-219,-205,-203,-221,-218,-207,-218,-156,-456,-93,-89,-110,-105,0,0,0,0,0,-56,0,-101,-24,-17,-23,-18,-8,-8,188,188,732,764,785,760,795,767,805,785,789,798,769,728,754,683,1578,1397,1575,1377]} 1. e4 {[%emt 0:00:05]} c6 {[%emt 0:01:20]} 2. d4 {[%emt 0:00:04]} d5 {[%emt 0:00:11]} 3. Nd2 {[%emt 0:00:05]} dxe4 {[%emt 0:00:09]} 4. Nxe4 {[%emt 0:00:06]} Nf6 {[%emt 0:00:31]} 5. Nxf6+ {[%emt 0:00:07]} exf6 {[%emt 0:00:07]} 6. Be3 {[%emt 0:00:07]} Bd6 {[%emt 0:01:20]} 7. Bd3 {[%emt 0:00:13]} Na6 {[%emt 0:00:19][%cal Bb8a6,Ba6c7,Bc7d5][%mdl 32]} 8. a3 {[%emt 0:00:16] Wards off Nb4} O-O {[%emt 0:01:03]} 9. Ne2 {[%emt 0:00:10]} Nc7 {[%emt 0:00:37]} 10. O-O {[%emt 0:01:21]} Nd5 {[%emt 0:01:29]} 11. Bd2 {[%emt 0:00:07]} f5 {[%emt 0:03:21]} 12. c4 {[%emt 0:01:03]} Nc7 {[%emt 0:09:29]} 13. Qc2 {[%emt 0:03:15]} g6 {[%emt 0:03:51]} 14. Rad1 {[%emt 0:04:50]} Re8 {[%emt 0:01:44]} 15. Rfe1 {[%emt 0:02:09]} Be6 {[%emt 0:05:41]} 16. Nc3 {[%emt 0:12:22]} Qh4 {[%emt 0:03:58][%csl LRd4,LRh2]} 17. f4 {[%emt 0:05:48]} Bxf4 $17 {[%emt 0:00:43]} 18. g3 {[%emt 0:00:17] [#]} (18. Bxf4 $17 Qxf4 19. Bf1) 18... Bxg3 $1 $19 {[%emt 0:00:09][%mdl 512]} 19. hxg3 {[%emt 0:00:04]} Qxg3+ {[%emt 0:00:11]} (19... Qxd4+ 20. Be3 Qg7 21. Qf2 $18) 20. Kh1 {[%emt 0:00:07] [#]} f4 $1 {[%emt 0:05:24][%mdl 1024] Black has strong compensation.} 21. Ne4 {[%emt 0:06:48]} Qh4+ {[%emt 0:02:16]} 22. Kg1 {[%emt 0:00:26]} Bg4 {[%emt 0:00:20]} 23. Bc3 $2 {[%emt 0:10:44]} (23. Bxf4 $17 Bxd1 24. Qf2 Qg4+ (24... Qxf2+ 25. Kxf2 Rxe4 26. Bxe4 $17) 25. Kh2 Qh5+ 26. Kg1 Qg4+) 23... Bf3 $2 {[%emt 0:03:02]} (23... Bxd1 $19 24. Qxd1 f5) 24. Qh2 $17 {[%emt 0:00:39]} Qg4+ {[%emt 0:00:13]} 25. Kf2 {[%emt 0:00:55]} Bxe4 {[%emt 0:00:34]} (25... Bxd1 $2 26. Nf6+ Kg7 27. Nxg4 Bxg4 28. d5+ (28. Qxf4 Rxe1 29. d5+ Kf8 $18) 28... f6 29. Qxf4 Nxd5 30. cxd5 $18 (30. Qxg4 Nxc3 31. Qd7+ Kf8 $18)) (25... Rxe4 $1 $17 26. Bxe4 Bxd1) 26. Bxe4 $11 {[%emt 0:00:27]} Rxe4 {[%emt 0:00:15]} 27. Rxe4 $40 {[%emt 0:00:32][%mdl 128] White mounts an attack.} Qxd1 {[%emt 0:00:05]} 28. Qxf4 {[%emt 0:00:29]} (28. d5 $1 $11 Re8 (28... cxd5 29. Qh6 $16) 29. Qh6 Qc2+ (29... Rxe4 30. Qg7#) 30. Kg1 Qb1+ (30... Rxe4 31. Qg7#) 31. Kf2) 28... Ne6 {[%emt 0:02:38]} (28... Re8 29. Rxe8+ Nxe8 30. Qe5 Qc2+ 31. Kg3 Qd3+ 32. Kh2 Qc2+ 33. Kg3 Qd3+ 34. Kg2 Qc2+ 35. Kg3 $11) (28... Qc2+ $1 $15 29. Re2 Ne6) 29. Qe5 {[%emt 0:00:37] [#]} (29. Qf6 $1 $11 {was the only way to keep the balance.} Qc2+ 30. Re2) 29... Qh5 {[%emt 0:10:53]} ({Black should try} 29... Ng7 $1 $17 {Hoping for ...Re8.} 30. d5 f6 (30... Qc2+ 31. Kg1 $11)) 30. Qxh5 {[%emt 0:04:33]} gxh5 {[%emt 0:00:01][%mdl 4096] Endgame KRB-KRN. Black is two pawns up.} 31. d5 {[%emt 0:01:09]} cxd5 {[%emt 0:00:20]} 32. cxd5 {[%emt 0:00:05][%cal Bc4d5,Bd5d6][%mdl 32]} Nc7 $2 {[%emt 0:00:51]} (32... Ng5 $11 {and Black has nothing to worry.} 33. Re1 f5) 33. d6 $18 {[%emt 0:00:57]} Nd5 $2 {[%emt 0:17:51]} (33... Ne6) 34. d7 {[%emt 0:00:34]} Kf8 {[%emt 0:00:02] [#] Inhibits Re8+.} 35. Bg7+ $1 {[%emt 0:03:06][%mdl 512]} Kxg7 {[%emt 0:01:56] KRN-KR} 36. Re8 {[%emt 0:00:06]} Nb6 {[%emt 0:01:25]} 37. Rxa8 {[%emt 0:00:15]} ({Not} 37. d8=R Rxd8 38. Rxd8 Nc4 $16) 37... Nxd7 {[%emt 0:00:05]} 38. Rxa7 {[%emt 0:00:07]} Nc5 {[%emt 0:00:04]} 39. b4 {[%emt 0:00:41]} Ne4+ {[%emt 0:00:09]} 40. Kf3 {[%emt 0:00:34]} Nd6 {[%emt 0:00:27]} 41. a4 {[%emt 0:21:33][%cal Ba3a4,Ba4a5][%mdl 32]} Kf6 {[%emt 0:21:05]} 42. a5 {[%emt 0:00:55]} 1-0

[Event "35th Staufer-Open-A 2025"]
[Site "Schwaebisch Gmuend"]
[Date "2025.01.06"]
[Round "9.11"]
[White "Hasanov, Zaur"]
[Black "Meissner, Felix"]
[Result "1-0"]
[ECO "B51"]
[WhiteElo "2231"]
[BlackElo "2372"]
[Annotator "TA"]
[PlyCount "47"]
[EventDate "2024.11.24"]
[EventType "swiss"]
[EventCountry "GER"]
[SourceTitle "playchess.com"]
[Source "ChessBase"]
[SourceQuality "1"]
[TimeControl "40/6000+30:1200+30"]

{[%evp 14,47,35,23,24,4,31,37,41,31,79,71,117,81,80,85,87,73,75,77,133,136,147,155,154,147,202,147,267,223,387,389,409,391,564,554]} 1. e4 {[%emt 0:00:05]} c5 {[%emt 0:00:07]} 2. Nf3 {[%emt 0:00:18]} d6 {[%emt 0:00:05]} 3. d4 {[%emt 0:00:22]} cxd4 {[%emt 0:00:06]} 4. Qxd4 {[%emt 0:00:09]} e5 {[%emt 0:01:14]} 5. Bb5+ {[%emt 0:07:37]} Nd7 {[%emt 0:00:19]} 6. Qd3 {[%emt 0:00:46]} h6 {[%emt 0:00:49]} 7. Be3 {[%emt 0:02:53]} Ngf6 {[%emt 0:00:24]} 8. Nc3 {[%emt 0:00:31][%cal Bb1c3,Bc3a4,Ba4b6][%mdl 32]} a6 {[%emt 0:00:38]} 9. Bc4 {[%emt 0:00:29]} Be7 {[%emt 0:01:08]} 10. a4 {[%emt 0:00:39][%cal Ba2a4,Ba4a5][%mdl 32]} O-O {[%emt 0:04:45] White is slightly better.} 11. O-O {[%emt 0:02:36]} Kh8 {[%emt 0:04:23]} (11... Ng4 $14 {is more appropriate.}) 12. a5 $16 {[%emt 0:13:13] White is much more active.} Qc7 {[%emt 0:04:20]} (12... Ng4 $142) 13. Na4 {[%emt 0:18:40]} Nc5 {[%emt 0:41:43]} 14. Bxc5 {[%emt 0:07:31]} dxc5 {[%emt 0:00:17]} 15. Nb6 {[%emt 0:01:02]} Rb8 {[%emt 0:00:13]} 16. h3 {[%emt 0:18:03]} g6 {[%emt 0:03:45]} (16... Bd7 $142) 17. Qc3 $36 {[%emt 0:05:31][%mdl 2048] Black is under strong pressure.} Bd6 {[%emt 0:06:50]} 18. Rfd1 {[%emt 0:04:38] Qd2 is the strong threat.} Kg7 {[%emt 0:00:42] [#]} 19. Bd5 {[%emt 0:01:22]} Ne8 {[%emt 0:10:06]} (19... Nd7 $16 20. Nc4 Be7 21. Nfxe5 (21. Ncxe5 $2 {too greedy.} Bf6 $19) 21... Nxe5) 20. Bb3 {[%emt 0:08:59] Hoping for Nd5.} f6 {[%emt 0:03:22]} (20... Nf6 $16 21. Nc4 Be7 (21... Nxe4 $2 {perishes.} 22. Qd3 $18)) 21. Nd2 {[%emt 0:02:08] Black must now prevent Ndc4. Excellent horsemanship. Black is weak on the light squares} Bd7 $2 {[%emt 0:08:04]} (21... Qe7 22. Ndc4 Be6) 22. Nxd7 $18 {[%emt 0:03:19]} Qxd7 {[%emt 0:00:07]} 23. Nc4 {[%emt 0:00:25]} Qc7 {[%emt 0:01:38]} (23... Qe7 {might work better.} 24. Rd3 f5 25. exf5 Qf6) 24. Rd3 {[%emt 0:01:01] Weighted Error Value: White=0.12 (very precise) /Black=0.52.  Mistake:       	---       	Black=7      Inaccurate:     	White=1     	Black=1      OK:         	White=10    	Black=3      Best:        	White=1     	---} 1-0